bitfinex/quotes_SOLUSD_20250525
["timestamp","ask_amount","ask_price","bid_price","bid_amount"]
[1748152546682,16.6567383,173.72,173.71,35.368257]
[1748152547474,16.6567383,173.72,173.71,153.968257]
[1748152547911,16.6567383,173.72,173.71,36.868257]
[1748152548090,16.6567383,173.72,173.71,71.308257]
[1748152548495,16.79889987,173.72,173.71,71.308257]
[1748152549309,16.79889987,173.72,173.71,35.388257]
[1748152549628,42.79889987,173.72,173.71,35.388257]
[1748152550296,42.6567383,173.72,173.71,35.388257]
[1748152553422,152.3567383,173.8,173.71,35.388257]
[1748152553423,8.1182,173.8,173.71,35.388257]
[1748152553725,16.6567383,173.75,173.71,35.388257]
[1748152554030,16.6567383,173.72,173.71,35.388257]
[1748152555737,26.0,173.76,173.71,35.388257]
[1748152555947,16.6567383,173.74,173.71,35.388257]
[1748152556142,16.6567383,173.75,173.71,35.388257]
[1748152556529,16.6567383,173.76,173.71,35.388257]
[1748152557650,16.6567383,173.76,173.72,118.66]
[1748152562053,16.6567383,173.76,173.71,35.388257]
[1748152563258,16.6567383,173.75,173.71,35.388257]
[1748152565882,16.6567383,173.73,173.71,0.928257]
[1748152566066,16.6567383,173.72,173.71,0.928257]
[1748152566378,16.6567383,173.72,173.71,35.388257]
[1748152567478,16.6567383,173.72,173.71,154.048257]
[1748152568569,16.6567383,173.73,173.71,154.048257]
[1748152570452,16.6567383,173.72,173.71,154.048257]
[1748152570687,16.6567383,173.72,173.71,71.348257]
[1748152570973,16.6567383,173.72,173.71,35.388257]
[1748152572083,16.6567383,173.72,173.71,0.928257]
[1748152572459,16.79889987,173.72,173.71,35.388257]
[1748152575782,16.79889987,173.72,173.71,0.928257]
[1748152575985,16.79889987,173.72,173.71,35.388257]
[1748152577484,16.79889987,173.72,173.71,119.588257]
[1748152577689,16.79889987,173.72,173.71,154.048257]
[1748152579572,16.79889987,173.72,173.71,71.348257]
[1748152583382,16.79889987,173.72,173.71,35.388257]
[1748152587513,16.79889987,173.72,173.71,154.068257]
[1748152589596,16.79889987,173.72,173.71,71.348257]
[1748152593515,16.79889987,173.72,173.71,35.388257]
[1748152597518,16.79889987,173.72,173.71,154.068257]
[1748152597714,10.81765158,173.72,173.71,154.068257]
[1748152599518,10.81765158,173.72,173.71,71.348257]
[1748152603022,10.81765158,173.72,173.71,35.388257]
[1748152604524,10.81765158,173.72,173.71,0.928257]
[1748152604824,10.81765158,173.72,173.71,35.388257]
[1748152607126,10.67549001,173.72,173.71,35.388257]
[1748152607598,10.67549001,173.72,173.71,154.048257]
[1748152609033,10.67549001,173.72,173.71,71.328257]
[1748152612731,10.67549001,173.72,173.71,35.388257]
[1748152616707,36.81765158,173.72,173.71,0.928257]
[1748152616909,36.81765158,173.72,173.71,35.388257]
[1748152617512,36.81765158,173.72,173.71,154.048257]
[1748152622836,36.81765158,173.72,173.71,35.388257]
[1748152626539,8.21424053,173.73,173.71,35.388257]
[1748152626747,10.67549001,173.72,173.71,35.388257]
[1748152627646,10.67549001,173.72,173.71,154.048257]
[1748152628531,8.21424053,173.75,173.71,0.928257]
[1748152628741,10.67549001,173.72,173.71,35.388257]
[1748152629554,26.0,173.74,173.71,35.388257]
[1748152629845,10.67549001,173.72,173.71,35.388257]
[1748152635335,26.0,173.69,173.59,1.5313]
[1748152635547,10.67549001,173.63,173.6,34.46]
[1748152635733,10.67549001,173.64,173.6,34.46]
[1748152637544,10.67549001,173.64,173.61,118.66]
[1748152639347,10.67549001,173.66,173.61,46.61549001]
[1748152639544,8.21424053,173.71,173.62,10.67549001]
[1748152639545,36.67549001,173.68,173.62,10.67549001]
[1748152640344,36.67549001,173.68,173.62,82.5]
[1748152640543,36.67549001,173.68,173.62,93.17549001]
[1748152641657,42.68191624,173.68,173.62,99.18191624]
[1748152643154,16.68191624,173.67,173.62,99.18191624]
[1748152645158,16.68191624,173.67,173.62,82.5]
[1748152645455,16.68191624,173.66,173.62,82.5]
[1748152646530,16.68191624,173.66,173.61,99.18191624]
[1748152647458,16.68191624,173.66,173.62,82.72]
[1748152647643,16.68191624,173.66,173.62,118.66]
[1748152649456,16.68191624,173.66,173.63,34.48]
[1748152654465,16.68191624,173.67,173.63,34.48]
[1748152654665,16.68191624,173.69,173.63,51.16191624]
[1748152657473,16.68191624,173.69,173.64,118.66]
[1748152660755,16.68191624,173.69,173.63,51.16191624]
[1748152661384,16.68191624,173.67,173.63,34.48]
[1748152661679,16.68191624,173.65,173.63,34.48]
[1748152662563,16.68191624,173.66,173.63,34.48]
[1748152663161,16.68191624,173.66,173.64,34.48]
[1748152663682,10.67801923,173.66,173.64,34.48]
[1748152664382,10.67801923,173.67,173.64,34.48]
[1748152667583,10.67801923,173.67,173.65,118.66]
[1748152668687,26.0,173.66,173.65,118.66]
[1748152668983,26.0,173.66,173.65,35.94]
[1748152670862,26.0,173.66,173.64,34.48]
[1748152673186,10.67801923,173.68,173.64,34.48]
[1748152677489,10.67801923,173.68,173.65,118.64]
[1748152681473,10.67801923,173.68,173.64,34.48]
[1748152682785,4.12477918,173.69,173.64,34.48]
[1748152683093,10.67801923,173.68,173.64,34.48]
[1748152684789,4.12477918,173.69,173.64,34.48]
[1748152685090,14.80279841,173.69,173.64,34.48]
[1748152686595,10.67801923,173.67,173.64,34.48]
[1748152687496,10.67801923,173.67,173.65,118.64]
[1748152688894,10.67801923,173.67,173.65,35.92]
[1748152691588,4.12477918,173.69,173.64,45.15801923]
[1748152691888,4.12477918,173.69,173.66,10.67801923]
[1748152692279,4.12477918,173.69,173.68,10.67801923]
[1748152693697,4.12477918,173.73,173.68,10.67801923]
[1748152693900,4.12477918,173.73,173.69,45.15801923]
[1748152695100,4.12477918,173.73,173.69,34.48]
[1748152695896,14.80279841,173.73,173.69,34.48]
[1748152696200,10.67801923,173.73,173.69,34.48]
[1748152696381,10.67801923,173.72,173.69,34.48]
[1748152696584,10.67801923,173.73,173.69,34.48]
[1748152697502,10.67801923,173.73,173.7,118.64]
[1748152698881,10.67801923,173.72,173.7,118.64]
[1748152699078,10.67801923,173.72,173.69,34.48]
[1748152701015,10.67801923,173.7,173.67,82.5]
[1748152701177,10.67801923,173.68,173.67,82.5]
[1748152701376,10.67801923,173.68,173.67,34.46]
[1748152705004,10.67801923,173.69,173.67,34.46]
[1748152707404,1.5966,173.71,173.68,34.46]
[1748152707609,26.14216157,173.7,173.69,153.08]
[1748152708713,47.49820003,173.7,173.69,153.08]
[1748152708912,47.49820003,173.7,173.69,70.36]
[1748152710209,47.49820003,173.7,173.57,84.0006]
[1748152710210,18.79181043,173.69,173.58,10.67801923]
[1748152710412,10.67801923,173.63,173.59,34.46]
[1748152710815,10.67801923,173.64,173.59,34.46]
[1748152711117,10.67801923,173.66,173.6,10.67801923]
[1748152711512,10.67801923,173.66,173.61,10.67801923]
[1748152713002,10.67801923,173.66,173.6,10.67801923]
[1748152714609,10.67801923,173.65,173.6,10.67801923]
[1748152715098,10.67801923,173.66,173.61,10.67801923]
[1748152716412,10.67801923,173.66,173.6,10.67801923]
[1748152717615,10.67801923,173.65,173.61,118.64]
[1748152717819,10.67801923,173.65,173.6,9.21927973]
[1748152720118,10.67801923,173.65,173.6,91.71927973]
[1748152727523,10.67801923,173.65,173.61,118.66]
[1748152729520,10.67801923,173.66,173.61,118.66]
[1748152729729,4.11533718,173.69,173.61,35.92]
[1748152729919,10.67801923,173.66,173.6,91.71927973]
[1748152730727,10.67801923,173.65,173.6,82.5]
[1748152730927,10.67801923,173.65,173.61,34.48]
[1748152732615,10.67801923,173.66,173.61,34.48]
[1748152735127,10.67801923,173.67,173.61,45.15801923]
[1748152736052,10.67801923,173.66,173.61,45.15801923]
[1748152736918,10.67801923,173.67,173.61,45.15801923]
[1748152737627,10.67801923,173.67,173.62,118.64]
[1748152738910,10.67801923,173.66,173.62,118.64]
[1748152741025,10.67801923,173.66,173.61,127.65801923]
[1748152741529,14.79335641,173.69,173.63,10.67801923]
[1748152741832,14.79335641,173.69,173.63,93.17801923]
[1748152742520,10.67801923,173.69,173.63,93.17801923]
[1748152742832,10.67801923,173.68,173.63,93.17801923]
[1748152743129,10.67801923,173.68,173.63,82.5]
[1748152743833,10.67801923,173.66,173.63,82.5]
[1748152746638,10.67801923,173.66,173.61,116.98]
[1748152747542,10.67801923,173.66,173.62,118.62]
[1748152750144,10.67801923,173.66,173.61,116.98]
[1748152751744,14.79335641,173.67,173.61,127.65801923]
[1748152755650,4.11533718,173.67,173.62,10.67801923]
[1748152756854,4.11533718,173.67,173.63,10.67801923]
[1748152757233,4.11533718,173.68,173.63,10.67801923]
[1748152757740,4.11533718,173.68,173.64,118.62]
[1748152759247,14.79335641,173.69,173.64,118.62]
[1748152761954,14.79335641,173.69,173.63,93.17801923]
[1748152762860,14.79335641,173.69,173.64,10.67801923]
[1748152763151,4.11533718,173.69,173.64,10.67801923]
[1748152763355,4.11533718,173.69,173.66,10.67801923]
[1748152763543,4.11533718,173.69,173.67,34.48]
[1748152764455,14.79335641,173.71,173.67,34.48]
[1748152765157,4.11533718,173.71,173.67,34.48]
[1748152765557,14.79335641,173.71,173.67,34.48]
[1748152765755,10.67801923,173.69,173.63,93.17801923]
[1748152765962,10.67801923,173.69,173.64,34.48]
[1748152766564,10.67801923,173.69,173.64,45.15801923]
[1748152766747,10.67801923,173.7,173.65,10.67801923]
[1748152767560,10.67801923,173.7,173.66,118.6]
[1748152769836,14.79335641,173.71,173.66,35.88]
[1748152770536,14.79335641,173.71,173.67,34.48]
[1748152770749,14.79335641,173.71,173.68,34.46]
[1748152771037,10.67801923,173.71,173.68,34.46]
[1748152771763,10.67801923,173.71,173.65,10.67801923]
[1748152771934,10.67801923,173.71,173.66,34.46]
[1748152777461,10.67801923,173.71,173.67,82.72]
[1748152777660,10.67801923,173.71,173.67,118.6]
[1748152778344,10.67801923,173.7,173.67,118.6]
[1748152778547,10.67801923,173.68,173.67,118.6]
[1748152778947,10.67801923,173.68,173.67,35.88]
[1748152779365,10.67801923,173.68,173.64,82.5]
[1748152779565,10.67801923,173.68,173.65,34.46]
[1748152780343,10.67801923,173.68,173.64,82.5]
[1748152780655,10.67801923,173.68,173.65,34.46]
[1748152782769,14.79335641,173.69,173.65,34.46]
[1748152783769,4.11533718,173.69,173.65,34.46]
[1748152783948,14.79335641,173.69,173.65,34.46]
[1748152784746,10.67801923,173.69,173.65,34.46]
[1748152786971,14.79335641,173.69,173.65,34.46]
[1748152787474,14.79335641,173.69,173.66,118.6]
[1748152788352,10.67801923,173.68,173.66,118.6]
[1748152791157,10.67801923,173.67,173.66,118.6]
[1748152791470,10.67801923,173.67,173.66,34.48]
[1748152792575,10.67801923,173.68,173.66,34.48]
[1748152794968,4.11533718,173.69,173.66,34.48]
[1748152795551,14.79335641,173.7,173.66,34.48]
[1748152797481,14.79335641,173.7,173.67,118.58]
[1748152798255,10.67801923,173.69,173.67,118.58]
[1748152798770,14.79335641,173.7,173.67,35.86]
[1748152799860,10.67801923,173.69,173.67,35.86]
[1748152800782,10.67801923,173.69,173.66,34.48]
[1748152805688,10.67801923,173.68,173.67,34.48]
[1748152807467,10.67801923,173.68,173.67,153.06]
[1748152808195,10.67801921,173.68,173.67,153.06]
[1748152809601,4.11533718,173.69,173.67,153.06]
[1748152809896,4.11533718,173.69,173.67,70.34]
[1748152810794,4.11533718,173.69,173.67,34.48]
[1748152810993,4.11533718,173.7,173.67,34.48]
[1748152817604,4.11533718,173.7,173.68,118.58]
[1748152818110,10.67801923,173.69,173.68,118.58]
[1748152818293,10.67801923,173.69,173.68,70.34]
[1748152819912,14.79335641,173.7,173.68,70.34]
[1748152822209,26.0,173.69,173.68,34.48]
[1748152823209,14.79335641,173.7,173.68,34.48]
[1748152823414,10.67801923,173.69,173.68,34.48]
[1748152824201,14.79335641,173.69,173.64,82.5]
[1748152824401,10.67801923,173.67,173.65,34.46]
[1748152825016,10.67801923,173.68,173.65,34.46]
[1748152826315,14.79335641,173.68,173.65,34.46]
[1748152827518,14.79335641,173.68,173.66,118.56]
[1748152830631,14.79335641,173.68,173.66,35.84]
[1748152831127,4.11533718,173.68,173.66,35.84]
[1748152832526,4.11533718,173.68,173.65,34.46]
[1748152832814,4.11533718,173.68,173.65,45.13801923]
[1748152834815,4.11533718,173.68,173.65,34.46]
[1748152835119,10.67801923,173.68,173.65,34.46]
[1748152837018,9.81441165,173.68,173.65,34.46]
[1748152837520,9.81441165,173.68,173.66,118.56]
[1748152840917,9.81441165,173.68,173.66,35.84]
[1748152841147,9.81441165,173.68,173.67,34.48]
[1748152842828,13.92974883,173.68,173.67,34.48]
[1748152847235,9.81441165,173.68,173.67,34.48]
[1748152847536,9.81441165,173.68,173.67,153.04]
[1748152848336,10.67589128,173.68,173.67,153.04]
[1748152851726,14.79122846,173.68,173.67,153.04]
[1748152853022,14.79122846,173.68,173.67,34.48]
[1748152857618,14.79122846,173.68,173.67,153.02]
[1748152858038,10.67589128,173.68,173.67,153.02]
[1748152861845,10.67589128,173.68,173.67,34.48]
[1748152867454,10.67589128,173.68,173.67,117.2]
[1748152867657,10.67589128,173.68,173.67,153.02]
[1748152869451,14.79420239,173.68,173.67,153.02]
[1748152871459,10.67589128,173.68,173.67,153.02]
[1748152872767,10.67589128,173.68,173.67,34.48]
[1748152874266,8.21424053,173.72,173.67,34.48]
[1748152874473,10.67589128,173.69,173.67,34.48]
[1748152875346,14.79407777,173.69,173.67,34.48]
[1748152877472,14.79407777,173.69,173.68,118.54]
[1748152881080,14.79407777,173.69,173.67,34.48]
[1748152881374,10.67589128,173.68,173.67,34.48]
[1748152887475,10.67589128,173.68,173.67,153.0]
[1748152889677,10.67589128,173.68,173.67,70.28]
[1748152891682,10.67589128,173.68,173.67,34.48]
[1748152897491,10.67589128,173.68,173.67,153.0]
[1748152898677,4.11818649,173.69,173.67,70.28]
[1748152899073,14.79407777,173.69,173.67,34.48]
[1748152903998,10.67589128,173.68,173.67,34.48]
[1748152904503,0.14216157,173.67,173.55,1.6228]
[1748152904676,10.67589128,173.62,173.56,60.48]
[1748152906800,10.67589128,173.62,173.56,26.0]
[1748152907097,10.67589128,173.62,173.57,34.48]
[1748152907508,10.67589128,173.62,173.58,118.52]
[1748152910801,10.67589128,173.62,173.59,70.28]
[1748152911590,10.67589128,173.62,173.56,26.0]
[1748152911888,10.67589128,173.62,173.57,34.48]
[1748152912284,10.67589128,173.62,173.58,34.48]
[1748152913287,10.67589128,173.62,173.59,34.48]
[1748152915713,10.67589128,173.62,173.53,6.4032]
[1748152915714,10.67589128,173.6,173.5,1.6469]
[1748152915909,26.14216157,173.64,173.5,1.6469]
[1748152915910,10.67589128,173.56,173.5,84.1469]
[1748152916113,10.67589128,173.56,173.51,34.48]
[1748152916708,10.67589128,173.57,173.51,34.48]
[1748152917297,10.67589128,173.58,173.51,34.48]
[1748152917615,10.67589128,173.58,173.52,118.52]
[1748152918002,10.67589128,173.58,173.52,35.78]
[1748152918401,10.67589128,173.59,173.52,35.78]
[1748152920317,10.67589128,173.59,173.51,60.48]
[1748152920526,10.67589128,173.59,173.51,142.98]
[1748152920818,10.67589128,173.58,173.51,142.98]
[1748152921316,10.67589128,173.57,173.51,142.98]
[1748152922414,10.67589128,173.57,173.51,108.5]
[1748152922613,10.67589128,173.55,173.52,34.48]
[1748152922934,10.67589128,173.56,173.52,34.48]
[1748152923526,10.68946909,173.56,173.52,34.48]
[1748152923728,10.68946909,173.56,173.53,34.48]
[1748152926199,10.68946909,173.57,173.53,34.48]
[1748152927519,10.68946909,173.57,173.54,118.54]
[1748152931825,10.68946909,173.56,173.54,118.54]
[1748152932029,10.68946909,173.56,173.53,34.48]
[1748152933640,10.68946909,173.56,173.51,10.68946909]
[1748152933805,10.68946909,173.56,173.54,34.5]
[1748152934823,10.68946909,173.55,173.54,34.5]
[1748152937733,10.68946909,173.55,173.54,153.06]
[1748152938027,10.68946909,173.55,173.54,118.56]
[1748152938231,10.68946909,173.55,173.54,153.06]
[1748152939815,10.68946909,173.55,173.54,70.28]
[1748152940226,10.83163066,173.55,173.54,34.5]
[1748152941211,10.83163066,173.55,173.46,10.68946909]
[1748152941412,10.68946909,173.51,173.47,34.5]
[1748152942432,10.68946909,173.51,173.42,84.107]
[1748152942637,10.68946909,173.5,173.44,10.68946909]
[1748152942851,10.68946909,173.5,173.45,10.68946909]
[1748152943135,10.68946909,173.51,173.45,10.68946909]
[1748152943639,10.68946909,173.5,173.42,84.107]
[1748152943822,10.68946909,173.5,173.46,34.5]
[1748152944025,10.68946909,173.51,173.46,34.5]
[1748152944333,10.68946909,173.51,173.46,45.18946909]
[1748152947627,10.68946909,173.51,173.47,118.58]
[1748152949032,10.68946909,173.51,173.46,8.36884909]
[1748152949712,10.68946909,173.51,173.45,10.68946909]
[1748152949916,10.68946909,173.5,173.44,10.68946909]
[1748152950331,10.68946909,173.5,173.45,34.5]
[1748152952049,10.68946909,173.5,173.45,45.18946909]
[1748152954547,10.68946909,173.5,173.45,10.68946909]
[1748152954741,10.68946909,173.5,173.46,34.5]
[1748152957757,10.68946909,173.5,173.47,118.58]
[1748152963153,10.68946909,173.49,173.47,35.78]
[1748152963343,10.68946909,173.49,173.48,34.5]
[1748152963861,10.68946909,173.49,173.42,1.607]
[1748152964044,10.68946909,173.48,173.43,34.5]
[1748152964650,0.14216157,173.51,173.43,34.5]
[1748152964969,10.68946909,173.48,173.43,34.5]
[1748152966960,10.68946909,173.49,173.44,34.5]
[1748152967562,10.68946909,173.49,173.45,118.58]
[1748152971348,10.68946909,173.49,173.45,35.78]
[1748152974961,10.68946909,173.48,173.45,35.78]
[1748152975260,10.68946909,173.48,173.44,34.5]
[1748152976563,4.26034806,173.51,173.44,34.5]
[1748152976865,10.68946909,173.48,173.44,34.5]
[1748152977564,10.68946909,173.48,173.45,118.58]
[1748152980270,10.68946909,173.47,173.45,118.58]
[1748152981856,10.68946909,173.46,173.4,10.68946909]
[1748152982165,10.68946909,173.46,173.41,34.52]
[1748152983800,10.68946909,173.46,173.42,34.52]
[1748152984067,10.68946909,173.45,173.43,34.52]
[1748152984276,10.68946909,173.44,173.43,34.52]
[1748152985470,10.68946909,173.45,173.43,34.52]
[1748152985673,10.68946909,173.45,173.44,34.52]
[1748152987566,10.68946909,173.45,173.44,153.1]
[1748152991889,10.68946909,173.45,173.44,34.52]
[1748152997681,10.68946909,173.45,173.44,153.12]
[1748152999389,10.68946909,173.45,173.44,70.28]
[1748153001304,10.68946909,173.45,173.44,34.52]
[1748153004390,10.83163066,173.45,173.35,82.5]
[1748153004597,4.11818649,173.46,173.34,1.5035]
[1748153004598,10.68946909,173.41,173.34,1.5035]
[1748153004779,10.68946909,173.38,173.35,34.52]
[1748153005094,10.68946909,173.37,173.36,34.52]
[1748153005502,10.68946909,173.39,173.36,34.52]
[1748153005797,135.7,173.43,173.36,34.52]
[1748153005967,10.68946909,173.42,173.37,10.68946909]
[1748153006173,4.11818649,173.4,173.38,10.68946909]
[1748153007698,4.11818649,173.4,173.39,118.58]
[1748153008096,10.68946909,173.43,173.39,118.58]
[1748153008287,10.68946909,173.43,173.4,34.52]
[1748153017502,10.68946909,173.43,173.41,118.58]
[1748153017707,36.68946909,173.43,173.41,118.58]
[1748153018501,26.0,173.43,173.41,118.58]
[1748153019401,30.11818649,173.45,173.41,118.58]
[1748153019584,10.68946909,173.44,173.41,35.74]
[1748153019987,10.68946909,173.44,173.4,34.52]
[1748153020184,30.11818649,173.45,173.4,34.52]
[1748153020185,4.11818649,173.45,173.4,34.52]
[1748153020405,4.11818649,173.45,173.41,10.68946909]
[1748153021706,10.68946909,173.46,173.41,10.68946909]
[1748153023904,14.80765558,173.46,173.41,10.68946909]
[1748153025509,10.68946909,173.45,173.4,34.52]
[1748153026803,4.11818649,173.46,173.4,34.52]
[1748153027015,10.68946909,173.45,173.4,45.20946909]
[1748153027515,10.68946909,173.45,173.41,118.58]
[1748153028829,10.68946909,173.45,173.39,10.68946909]
[1748153028992,10.68946909,173.45,173.42,70.26]
[1748153030313,14.80765558,173.45,173.42,70.26]
[1748153030825,14.80765558,173.45,173.42,34.52]
[1748153032420,10.68946909,173.44,173.35,110.102]
[1748153032636,10.68946909,173.43,173.37,10.68946909]
[1748153036143,10.68946909,173.43,173.38,10.68946909]
[1748153037246,4.11818649,173.44,173.39,10.68946909]
[1748153037541,4.11818649,173.44,173.4,153.08]
[1748153037910,4.11818649,173.44,173.4,70.24]
[1748153038109,14.94981715,173.45,173.4,70.24]
[1748153039229,4.11818649,173.45,173.4,45.20946909]
[1748153039539,4.11818649,173.45,173.41,10.68946909]
[1748153044839,14.80765558,173.46,173.41,10.68946909]
[1748153045036,10.68946909,173.42,173.35,1.602]
[1748153045226,10.68946909,173.41,173.36,34.52]
[1748153045739,10.68946909,173.41,173.37,34.52]
[1748153046037,10.68946909,173.41,173.35,10.68946909]
[1748153046243,10.68946909,173.41,173.36,34.52]
[1748153047134,14.80765558,173.41,173.36,34.52]
[1748153047615,14.80765558,173.41,173.37,118.56]
[1748153048739,10.68946909,173.4,173.37,118.56]
[1748153048929,10.68946909,173.4,173.38,34.52]
[1748153050344,10.68946909,173.39,173.38,34.52]
[1748153052344,10.83163066,173.39,173.38,34.52]
[1748153053048,0.14216157,173.38,173.3,10.68946909]
[1748153053257,10.68946909,173.35,173.31,34.52]
[1748153053434,10.68946909,173.35,173.32,34.52]
[1748153053632,10.83163066,173.38,173.32,45.20946909]
[1748153053944,135.7,173.4,173.35,10.68946909]
[1748153054153,36.68946909,173.41,173.36,34.52]
[1748153054822,10.68946909,173.4,173.36,34.52]
[1748153055654,16.73463066,173.4,173.36,34.52]
[1748153056552,20.85138329,173.4,173.36,34.52]
[1748153057551,20.85138329,173.4,173.37,118.6]
[1748153057846,4.11675263,173.4,173.37,118.6]
[1748153060950,20.85138329,173.4,173.37,118.6]
[1748153061250,16.73463066,173.39,173.37,35.74]
[1748153061430,16.73463066,173.38,173.32,18.31563066]
[1748153061750,16.73463066,173.38,173.33,34.52]
[1748153062253,16.73463066,173.36,173.28,84.0806]
[1748153062474,16.73463066,173.35,173.28,1.5806]
[1748153062767,16.73463066,173.34,173.29,34.52]
[1748153062933,16.73463066,173.34,173.3,34.52]
[1748153064834,16.73463066,173.33,173.31,34.54]
[1748153066650,4.11675263,173.36,173.31,34.54]
[1748153066852,16.73463066,173.34,173.31,34.54]
[1748153067549,16.73463066,173.34,173.32,118.62]
[1748153068134,4.11675263,173.36,173.32,35.74]
[1748153068549,20.85138329,173.36,173.31,51.27463066]
[1748153069243,16.73463066,173.36,173.31,51.27463066]
[1748153070058,46.85138329,173.38,173.32,16.73463066]
[1748153070244,4.11675263,173.38,173.33,16.73463066]
[1748153070958,16.73463066,173.38,173.33,16.73463066]
[1748153071458,16.73463066,173.38,173.31,34.54]
[1748153071646,16.73463066,173.38,173.33,16.73463066]
[1748153072445,16.73463066,173.38,173.32,16.73463066]
[1748153072636,16.73463066,173.37,173.31,51.27463066]
[1748153076865,16.73463066,173.37,173.32,16.73463066]
[1748153077457,16.73463066,173.37,173.33,82.88]
[1748153077639,16.73463066,173.37,173.33,118.62]
[1748153079839,16.73463066,173.37,173.33,35.74]
[1748153081065,20.85138329,173.37,173.33,35.74]
[1748153081272,16.73463066,173.36,173.33,35.74]
[1748153081571,16.73463066,173.36,173.31,51.27463066]
[1748153082872,16.73463066,173.36,173.31,34.54]
[1748153084674,16.73463066,173.34,173.29,16.73463066]
[1748153084877,16.73463066,173.34,173.32,34.54]
[1748153085374,16.73463066,173.34,173.33,34.54]
[1748153087467,16.73463066,173.34,173.33,153.16]
[1748153088772,16.73463066,173.34,173.33,35.74]
[1748153089064,20.85138329,173.34,173.33,70.28]
[1748153090663,20.82427979,173.34,173.33,70.28]
[1748153090870,16.70752716,173.34,173.33,70.28]
[1748153091170,16.70752716,173.34,173.33,34.54]
[1748153095774,10.71945545,173.34,173.33,34.54]
[1748153097476,10.71945545,173.34,173.33,153.18]
[1748153098576,10.71945545,173.34,173.33,70.28]
[1748153100767,10.71945545,173.34,173.26,10.71945545]
[1748153100976,10.71945545,173.32,173.27,34.54]
[1748153101564,14.85148636,173.32,173.27,34.54]
[1748153101978,14.85148636,173.32,173.26,10.71945545]
[1748153102281,10.71945545,173.29,173.27,34.54]
[1748153102459,10.71945545,173.3,173.27,34.54]
[1748153102658,10.71945545,173.3,173.28,34.54]
[1748153103556,10.72265137,173.3,173.28,34.54]
[1748153103761,14.85468228,173.3,173.28,34.54]
[1748153104173,4.13203091,173.3,173.28,34.54]
[1748153105366,4.13203091,173.31,173.28,34.54]
[1748153106984,14.85468228,173.34,173.28,34.54]
[1748153107562,14.85468228,173.34,173.29,118.64]
[1748153107777,14.85468226,173.34,173.29,118.64]
[1748153108876,4.13203091,173.34,173.29,118.64]
[1748153110788,4.13203091,173.35,173.29,118.64]
[1748153111185,4.13203091,173.35,173.29,35.74]
[1748153111692,20.87525987,173.35,173.29,35.74]
[1748153113996,20.87525987,173.35,173.28,34.54]
[1748153115394,16.74322896,173.34,173.29,34.54]
[1748153116200,16.74322896,173.34,173.25,110.00809649]
[1748153116500,20.87525987,173.34,173.26,34.54]
[1748153117496,20.87525987,173.34,173.27,118.6]
[1748153117880,4.13203091,173.34,173.27,35.72]
[1748153118915,4.13203091,173.35,173.27,35.72]
[1748153119399,4.13203091,173.35,173.26,117.04]
[1748153127503,4.13203091,173.35,173.27,118.6]
[1748153128691,16.74322896,173.31,173.26,82.5]
[1748153128879,16.74322896,173.31,173.27,34.54]
[1748153129203,16.74322896,173.3,173.27,34.54]
[1748153129581,16.74322896,173.31,173.27,34.54]
[1748153130001,16.74322896,173.32,173.27,34.54]
[1748153131003,16.74322896,173.32,173.25,1.50809649]
[1748153131206,16.74322896,173.32,173.26,34.54]
[1748153131689,4.13203091,173.31,173.26,34.54]
[1748153136511,10.71990548,173.29,173.2,1.6222]
[1748153136687,10.71990548,173.29,173.21,34.54]
[1748153136887,10.71990548,173.28,173.21,34.54]
[1748153137495,10.71990548,173.29,173.22,118.62]
[1748153139709,16.75601465,173.29,173.22,35.72]
[1748153140104,16.75601465,173.29,173.2,27.6222]
[1748153140411,16.75601465,173.29,173.21,34.54]
[1748153141507,16.75601465,173.26,173.2,1.6222]
[1748153141809,16.75601465,173.26,173.22,34.54]
[1748153142502,16.75601465,173.26,173.23,34.54]